bitfinex-derivatives/quotes_BTCF0:USTF0_20240910
["timestamp","ask_amount","ask_price","bid_price","bid_amount"]
[1725975961378,0.087867,56901.0,56900.0,0.009]
[1725975961585,0.087867,56901.0,56888.0,0.087886]
[1725975961586,0.087883,56891.0,56888.0,0.087886]
[1725975961878,0.6150799,56901.0,56889.0,0.087886]
[1725975961879,0.08691551,56890.0,56889.0,0.087886]
[1725975962068,0.02848547,56890.0,56889.0,0.087886]
[1725975962263,0.087879,56894.0,56889.0,0.087886]
[1725975962469,0.08692303,56893.0,56890.0,0.087883]
[1725975962663,0.08692303,56892.0,56891.0,0.307882]
[1725975962873,0.02848547,56892.0,56891.0,0.22]
[1725975963076,0.1214718,56898.0,56893.0,0.087879]
[1725975963373,0.1214718,56898.0,56887.0,0.22]
[1725975963570,0.1041047,56889.0,56888.0,0.087887]
[1725975963977,0.02849352,56889.0,56888.0,0.087887]
[1725975964376,0.08690097,56894.0,56887.0,0.22]
[1725975964680,0.10409475,56889.0,56888.0,0.087887]
[1725975964982,0.10509475,56889.0,56888.0,0.313887]
[1725975965176,0.13358827,56889.0,56888.0,0.313887]
[1725975965678,0.001,56894.0,56888.0,0.22]
[1725975965865,0.002,56894.0,56893.0,0.22]
[1725975966069,0.002,56894.0,56893.0,0.307879]
[1725975966877,0.002,56894.0,56890.0,0.087884]
[1725975967079,0.002,56894.0,56891.0,0.087882]
[1725975967379,0.001,56894.0,56891.0,0.087882]
[1725975967686,0.001,56894.0,56888.0,0.05855615]
[1725975967687,0.52732,56893.0,56888.0,0.006]
[1725975967886,0.52732,56893.0,56872.0,0.087911]
[1725975967887,0.087906,56876.0,56875.0,0.05255615]
[1725975968071,0.087924,56865.0,56862.0,0.05254018]
[1725975968266,0.22,56870.0,56860.0,0.08793]
[1725975968469,0.0975,56875.0,56857.0,0.22]
[1725975968470,0.087912,56872.0,56857.0,0.22]
[1725975968686,0.087912,56872.0,56864.0,0.087924]
[1725975968975,0.0975,56875.0,56866.0,0.22]
[1725975969367,0.001,56876.0,56866.0,0.22]
[1725975969884,0.001,56876.0,56870.0,0.087914]
[1725975970385,0.001,56876.0,56871.0,0.22]
[1725975970582,0.001,56876.0,56875.0,0.087907]
[1725975970778,0.002,56876.0,56875.0,0.087907]
[1725975970975,0.002,56876.0,56875.0,0.307907]
[1725975971174,0.3175,56885.0,56871.0,0.22]
[1725975971378,0.3175,56885.0,56870.0,0.087914]
[1725975971379,0.001,56872.0,56870.0,0.087914]
[1725975971580,0.001,56872.0,56863.0,0.0994]
[1725975971875,0.001,56872.0,56866.0,0.22]
[1725975972073,0.087908,56875.0,56871.0,0.22]
[1725975972280,0.002,56876.0,56871.0,0.22]
[1725975972677,0.087913,56872.0,56866.0,0.22]
[1725975972876,0.002,56876.0,56868.0,0.087918]
[1725975973077,0.001,56872.0,56863.0,0.0994]
[1725975973282,0.001,56872.0,56866.0,0.22]
[1725975973582,0.001,56872.0,56869.0,0.087916]
[1725975973883,0.001,56872.0,56871.0,0.307913]
[1725975974089,0.002,56872.0,56871.0,0.307913]
[1725975974773,0.001,56872.0,56871.0,0.307913]
[1725975975787,0.002,56872.0,56871.0,0.307913]
[1725975977082,0.002,56872.0,56862.0,0.1044]
[1725975977281,0.002,56872.0,56863.0,0.087926]
[1725975977484,0.002,56872.0,56860.0,0.08793]
[1725975977674,0.002,56872.0,56855.0,0.0971]
[1725975977675,0.22,56870.0,56855.0,0.0971]
[1725975977877,0.002,56872.0,56849.0,0.087947]
[1725975977878,0.22,56866.0,56849.0,0.087947]
[1725975978179,0.087933,56858.0,56846.0,0.2029]
[1725975978383,0.087941,56854.0,56848.0,0.087948]
[1725975978586,0.22,56850.0,56836.0,0.087967]
[1725975978887,0.22,56862.0,56833.0,0.087972]
[1725975978888,0.22,56839.0,56833.0,0.087972]
[1725975979182,0.22,56839.0,56824.0,0.2994]
[1725975979377,0.1027,56849.0,56817.0,0.087997]
[1725975979378,0.22,56828.0,56817.0,0.087997]
[1725975979575,0.22,56828.0,56801.0,0.05254253]
[1725975979576,0.22,56828.0,56811.0,0.088005]
[1725975979784,0.087974,56832.0,56819.0,0.22]
[1725975980083,0.22,56839.0,56819.0,0.22]
[1725975980285,0.0041,56840.0,56824.0,0.22]
[1725975980479,0.08796,56841.0,56828.0,0.22]
[1725975980677,0.22,56843.0,56828.0,0.22]
[1725975980678,0.087962,56840.0,56828.0,0.22]
[1725975980984,0.087963,56839.0,56828.0,0.22]
[1725975981181,0.087979,56829.0,56818.0,0.087995]
[1725975981383,0.1027,56849.0,56806.0,0.088013]
[1725975981384,0.22,56820.0,56806.0,0.088013]
[1725975981588,0.22,56824.0,56807.0,0.22]
[1725975981888,0.1027,56828.0,56813.0,0.088002]
[1725975982073,0.087987,56824.0,56812.0,0.22]
[1725975982278,0.1037,56828.0,56812.0,0.308004]
[1725975982580,0.001,56828.0,56822.0,0.087988]
[1725975982779,0.087969,56836.0,56822.0,0.087988]
[1725975982980,0.001,56824.0,56821.0,0.22]
[1725975983181,0.0051,56840.0,56822.0,0.62906]
[1725975983376,0.001,56840.0,56828.0,0.22]
[1725975983577,0.001,56840.0,56833.0,0.087972]
[1725975983774,0.001,56840.0,56822.0,0.1011]
[1725975983775,0.001,56840.0,56839.0,0.087963]
[1725975983981,0.0041,56857.0,56837.0,0.22]
[1725975984180,0.307933,56859.0,56844.0,0.087954]
[1725975984377,0.0088,56867.0,56824.0,0.0088]
[1725975984378,0.0088,56867.0,56833.0,0.22]
[1725975984588,0.0088,56867.0,56866.0,0.22]
[1725975984589,0.0041,56867.0,56866.0,0.22]
[1725975984787,0.22,56870.0,56851.0,0.22]
[1725975984977,0.22,56865.0,56852.0,0.087942]
[1725975985177,0.22,56870.0,56851.0,0.22]
[1725975985781,0.307916,56870.0,56855.0,0.22]
[1725975985979,0.001,56867.0,56855.0,0.22]
[1725975986178,0.001,56867.0,56845.0,0.1051]
[1725975986179,0.22,56864.0,56846.0,0.22]
[1725975986492,0.38,56860.0,56851.0,0.001]
[1725975986691,0.38,56865.0,56851.0,0.001]
[1725975987379,0.001,56864.0,56846.0,0.001]
[1725975987679,0.001,56864.0,56851.0,0.013]
[1725975987983,0.087934,56858.0,56851.0,0.013]
[1725975988188,0.087934,56858.0,56846.0,0.001]
[1725975988391,0.087934,56858.0,56851.0,0.014]
[1725975988894,0.088925,56864.0,56851.0,0.014]
[1725975989292,0.087926,56863.0,56851.0,0.014]
[1725975989592,0.38,56865.0,56851.0,0.014]
[1725975989593,0.087928,56862.0,56851.0,0.014]
[1725975990693,0.08793,56861.0,56851.0,0.014]
[1725975990886,0.38,56860.0,56851.0,0.014]
[1725975991191,0.08793,56861.0,56851.0,0.014]
[1725975991395,0.001,56863.0,56856.0,0.087936]
[1725975991589,0.001,56863.0,56851.0,0.011]
[1725975991590,0.001,56863.0,56851.0,0.098944]
[1725975991793,0.467929,56861.0,56851.0,0.011]
[1725975991995,0.467929,56861.0,56846.0,0.087952]
[1725975992298,0.087943,56852.0,56851.0,0.009]
[1725975992801,0.087935,56857.0,56851.0,0.009]
[1725975993296,0.001,56863.0,56851.0,0.009]
[1725975993297,0.001,56861.0,56851.0,0.009]
[1725975994100,0.001,56861.0,56855.0,0.467937]
[1725975994487,0.001,56861.0,56858.0,0.37]
[1725975994697,0.001,56861.0,56860.0,0.08793]
[1725975995191,0.0041,56876.0,56860.0,1.1276]
[1725975995386,0.38,56872.0,56852.0,0.097]
[1725975995590,0.001,56857.0,56853.0,0.087941]
[1725975995990,0.001,56857.0,56852.0,0.097]
[1725975996396,0.087921,56866.0,56852.0,0.097]
[1725975996692,0.087921,56866.0,56860.0,0.013]
[1725975996993,0.087929,56861.0,56860.0,0.013]
[1725975997390,0.087924,56864.0,56860.0,0.013]
[1725975997984,0.087918,56868.0,56860.0,0.013]
[1725975998185,0.087912,56872.0,56863.0,0.087926]
[1725975998499,0.0979,56880.0,56858.0,0.37]
[1725975998684,0.087893,56885.0,56879.0,0.457901]
[1725975998887,0.0041,56886.0,56884.0,0.37]
[1725975999090,0.0041,56886.0,56885.0,0.087892]
[1725975999893,0.0041,56886.0,56884.0,0.37]
[1725975999894,0.0047,56892.0,56884.0,0.37]
[1725976000098,0.37,56906.0,56886.0,0.37]
[1725976000401,0.087884,56890.0,56884.0,0.002]
[1725976000591,0.37,56891.0,56884.0,0.002]
[1725976000897,0.087888,56888.0,56884.0,0.002]
[1725976001095,0.087879,56893.0,56884.0,0.002]
[1725976001296,0.001,56886.0,56884.0,0.002]
[1725976002300,0.001,56886.0,56880.0,0.087899]
[1725976002486,0.001,56886.0,56875.0,0.1051]
[1725976002487,0.37,56896.0,56884.0,0.001]
[1725976002889,0.0979,56905.0,56884.0,0.001]
[1725976002890,0.10409475,56899.0,56884.0,0.001]
[1725976003100,0.37,56901.0,56884.0,0.001]
[1725976003101,0.087875,56896.0,56885.0,0.37]
[1725976003600,0.087867,56901.0,56885.0,0.37]
[1725976003791,0.08786,56906.0,56890.0,0.37]
[1725976003992,0.37,56911.0,56890.0,0.37]
[1725976003993,0.10409475,56910.0,56893.0,0.087879]
[1725976004189,0.02849354,56909.0,56893.0,0.087879]
[1725976004390,0.087865,56903.0,56894.0,0.087878]
[1725976004695,0.087865,56902.0,56892.0,0.087879]
[1725976004999,0.37,56906.0,56892.0,0.087879]
[1725976005295,0.37,56906.0,56893.0,0.087879]
[1725976005497,0.37,56906.0,56885.0,0.4666]
[1725976005498,0.001,56896.0,56895.0,0.087876]
[1725976005996,0.001,56896.0,56891.0,0.37]
[1725976005997,0.005,56902.0,56892.0,0.001]
[1725976006502,0.005,56902.0,56897.0,0.087873]
[1725976006698,0.005,56902.0,56889.0,0.37]
[1725976006699,0.005,56896.0,56895.0,0.001]
[1725976006906,0.015,56896.0,56895.0,0.088876]
[1725976007592,0.015,56896.0,56895.0,0.001]
[1725976008498,0.01,56896.0,56892.0,0.001]
[1725976008696,0.01,56896.0,56893.0,0.087879]
[1725976008901,0.105866,56902.0,56893.0,0.087879]
[1725976009105,0.105866,56902.0,56886.0,0.0984]
[1725976009106,0.013,56902.0,56886.0,0.0984]
[1725976009399,0.005,56896.0,56895.0,0.001]
[1725976009598,0.005,56896.0,56895.0,0.0882206]
[1725976009796,0.005,56896.0,56895.0,0.0003446]
[1725976009797,0.012,56896.0,56895.0,0.0003446]
[1725976010003,0.099875,56896.0,56895.0,0.0003446]
[1725976010197,0.094875,56896.0,56891.0,0.087882]
[1725976010399,0.099875,56896.0,56893.0,0.001]
[1725976010698,0.102875,56896.0,56893.0,0.001]
[1725976010891,0.102875,56896.0,56886.0,0.0984]
[1725976011094,0.102875,56896.0,56888.0,0.087886]
[1725976011095,0.087876,56895.0,56888.0,0.087886]
[1725976011295,0.087876,56895.0,56886.0,0.0984]
[1725976011505,0.015,56896.0,56891.0,0.087882]
[1725976012003,0.016,56896.0,56895.0,0.001]
[1725976012305,0.73524975,56896.0,56895.0,0.001]
[1725976012494,0.65364984,56896.0,56884.0,0.087892]
[1725976012800,0.087884,56891.0,56885.0,0.087891]
[1725976013004,0.02849484,56895.0,56881.0,0.087897]
[1725976013005,0.087891,56886.0,56881.0,0.087897]
[1725976013201,0.087886,56889.0,56879.0,0.22]
[1725976013405,0.02849662,56888.0,56884.0,0.087893]
[1725976013998,0.02849662,56888.0,56885.0,0.001]
[1725976014398,0.10352474,56893.0,56889.0,0.087886]
[1725976014600,0.006,56896.0,56888.0,0.22]
[1725976014601,0.13201887,56892.0,56888.0,0.22]
[1725976014797,0.02849413,56891.0,56888.0,0.22]
[1725976015000,0.10352474,56893.0,56888.0,0.22]
[1725976015295,0.02849433,56892.0,56891.0,0.087882]
[1725976015493,0.02849407,56894.0,56892.0,0.087881]
[1725976015694,0.02849388,56893.0,56892.0,0.087881]
[1725976016201,0.13201862,56894.0,56892.0,0.087881]
[1725976016409,0.02849388,56893.0,56890.0,0.087883]
[1725976016602,0.02849388,56893.0,56892.0,0.087881]
[1725976016805,0.02849388,56893.0,56892.0,0.088881]
[1725976017105,0.13201862,56893.0,56892.0,0.001]
[1725976017408,0.17377069,56893.0,56892.0,0.001]
[1725976017709,0.11637288,56893.0,56892.0,0.001]
[1725976017909,0.087879,56893.0,56892.0,0.001]
[1725976018301,0.007,56894.0,56892.0,0.001]
[1725976018506,0.005,56893.0,56892.0,0.08888]
[1725976018817,0.012,56893.0,56892.0,0.08888]
[1725976019607,0.005,56893.0,56892.0,0.08888]
[1725976020403,0.007,56893.0,56892.0,0.08888]
[1725976020795,0.3274,56907.0,56892.0,1.216201]
[1725976020995,0.415248,56914.0,56906.0,0.22]
[1725976021200,0.63416,56916.0,56893.0,0.188679]
[1725976021201,0.00228001,56916.0,56911.0,0.22]
[1725976021401,0.00228001,56918.0,56915.0,0.087845]
[1725976021602,0.087832,56924.0,56911.0,0.22]
[1725976021805,0.087832,56924.0,56896.0,0.0088]
[1725976021806,0.5474,56925.0,56906.0,0.22]
[1725976022004,0.5474,56925.0,56909.0,0.087854]
[1725976022005,0.22,56921.0,56909.0,0.087854]
[1725976022704,0.007,56918.0,56915.0,0.001]
[1725976022901,0.087844,56916.0,56915.0,0.001]
[1725976023302,0.08785,56913.0,56907.0,0.087858]
[1725976023602,0.087838,56920.0,56909.0,0.001]
[1725976023807,0.227,56921.0,56909.0,0.001]
[1725976023808,0.007,56921.0,56920.0,0.087838]
[1725976024113,0.007,56921.0,56919.0,0.22]
[1725976024296,0.007,56921.0,56915.0,0.22]
[1725976025304,0.007,56921.0,56918.0,0.08784]
[1725976025506,0.087832,56924.0,56914.0,0.087846]
[1725976025701,0.087833,56923.0,56915.0,0.001]
[1725976026103,0.001,56921.0,56915.0,0.013]
[1725976026312,0.001,56921.0,56915.0,0.021]
[1725976026611,0.001,56921.0,56918.0,0.22]
[1725976026810,0.001,56921.0,56920.0,0.087838]
[1725976027011,0.3274,56935.0,56920.0,0.087838]
[1725976027314,0.185205,56942.0,56918.0,0.82]
[1725976027315,0.10364232,56941.0,56928.0,0.22]
[1725976027506,0.10364232,56939.0,56932.0,0.22]
[1725976027699,0.10364232,56943.0,56937.0,0.15848849]
[1725976027902,0.10364232,56943.0,56924.0,0.087831]
[1725976027903,0.02847136,56942.0,56931.0,0.087821]
[1725976028108,0.10364232,56944.0,56931.0,0.087821]
[1725976028303,0.22,56945.0,56934.0,0.087815]
[1725976028501,0.22,56945.0,56928.0,0.22]
[1725976028502,0.02847172,56944.0,56928.0,0.22]
[1725976028705,0.08781,56938.0,56928.0,0.22]
[1725976028905,0.32364232,56945.0,56932.0,0.001]
[1725976028906,0.006,56939.0,56932.0,0.001]
[1725976029105,0.006,56939.0,56933.0,0.087817]
[1725976029306,0.08781,56938.0,56932.0,0.221]
[1725976029715,0.006,56939.0,56932.0,0.001]
[1725976029906,0.09381,56939.0,56932.0,0.001]
[1725976030106,0.08781,56938.0,56932.0,0.001]
[1725976030312,0.006,56939.0,56937.0,0.22]
[1725976030508,0.006,56939.0,56932.0,0.221]
[1725976030715,0.006,56939.0,56935.0,0.087814]
[1725976030906,0.087807,56941.0,56935.0,0.087814]
[1725976031219,0.087807,56941.0,56936.0,0.087813]
[1725976031416,0.087807,56941.0,56932.0,0.22]
[1725976031908,0.002,56939.0,56932.0,0.22]
[1725976032103,0.002,56939.0,56936.0,0.087812]
[1725976032709,0.002,56941.0,56936.0,0.087812]
[1725976032912,0.08795527,56940.0,56932.0,0.22]
[1725976033110,0.002,56941.0,56935.0,0.087815]
[1725976033111,0.10366958,56936.0,56935.0,0.087815]
[1725976033323,0.02847083,56936.0,56935.0,0.087815]
[1725976033614,0.02847083,56936.0,56935.0,1.587815]
[1725976033809,0.02847083,56936.0,56932.0,0.22]
[1725976034003,0.10366958,56936.0,56927.0,0.1025]
[1725976034216,0.10366958,56932.0,56925.0,0.11671961]
[1725976034514,0.02847083,56931.0,56925.0,0.02141961]
[1725976034701,0.02847083,56930.0,56928.0,0.22]
[1725976034907,0.02847083,56929.0,56928.0,0.22]
[1725976035218,0.10366958,56932.0,56931.0,0.087821]
[1725976035414,0.10366958,56932.0,56928.0,0.22]
[1725976035609,0.17498361,56931.0,56918.0,0.22]
[1725976035915,0.10357901,56927.0,56925.0,0.09683]
[1725976036114,0.13205235,56926.0,56925.0,0.009]
[1725976036322,0.79141272,56926.0,56909.0,0.2288]
[1725976036509,0.08784,56919.0,56912.0,0.087849]
[1725976036708,0.02847979,56918.0,56904.0,0.22]
[1725976037013,0.21990751,56917.0,56909.0,0.22]
[1725976037311,0.10358472,56914.0,56904.0,0.307862]
[1725976037514,0.087853,56911.0,56905.0,0.087861]
[1725976037716,0.22,56921.0,56904.0,0.22]
[1725976037717,0.02847979,56910.0,56906.0,0.087859]
[1725976037909,0.02847979,56909.0,56907.0,0.087857]
[1725976038110,0.02847979,56909.0,56901.0,0.1046]
[1725976038111,0.32358472,56912.0,56896.0,0.22]
[1725976038313,0.087863,56904.0,56896.0,0.307875]
[1725976038511,0.22,56912.0,56896.0,0.0212946]
[1725976038512,0.13206983,56903.0,56896.0,0.0212946]
[1725976038809,0.19145172,56901.0,56893.0,1.5]
[1725976039115,0.02848511,56900.0,56891.0,0.22]
[1725976039313,0.02848511,56900.0,56885.0,0.2062]
[1725976039314,0.10358472,56900.0,56892.0,0.08788]
[1725976039513,0.08786,56906.0,56885.0,0.2062]
[1725976039514,0.087873,56897.0,56896.0,0.014]
[1725976039717,0.11635811,56897.0,56896.0,0.014]
[1725976039908,0.52728,56897.0,56882.0,0.0047]
[1725976040114,0.087894,56884.0,56882.0,0.0047]
[1725976040918,0.087903,56878.0,56863.0,0.22]
[1725976041214,0.087884,56890.0,56863.0,0.22]
[1725976041215,0.087905,56877.0,56863.0,0.22]
[1725976041811,0.087905,56877.0,56866.0,0.087921]
[1725976042820,0.001,56884.0,56867.0,0.22]
[1725976043021,0.001,56877.0,56873.0,0.22]
[1725976043213,0.002,56877.0,56874.0,0.087909]
[1725976043523,0.002,56877.0,56873.0,0.22]
[1725976043712,0.001,56877.0,56864.0,0.087924]
[1725976043908,0.089905,56877.0,56866.0,0.001]
[1725976044114,0.087906,56876.0,56866.0,0.001]
[1725976044315,0.002,56877.0,56866.0,0.001]
[1725976044316,0.22,56872.0,56866.0,0.001]
[1725976044524,0.002,56877.0,56866.0,0.001]
[1725976044526,0.22,56867.0,56866.0,0.001]
[1725976044824,0.22,56867.0,56838.0,0.0041]
[1725976045013,0.087949,56848.0,56841.0,1.5]
[1725976045421,0.22,56854.0,56841.0,1.5]
[1725976045620,0.087945,56851.0,56841.0,1.58796]
[1725976045817,0.22,56854.0,56840.0,0.199]
[1725976046030,0.087931,56860.0,56849.0,0.22]
[1725976046213,0.001,56867.0,56845.0,0.38]
[1725976046214,0.087932,56859.0,56845.0,0.38]
[1725976046413,0.001,56848.0,56845.0,0.38]
[1725976046721,0.001,56848.0,56847.0,0.08795]
[1725976046925,0.001,56851.0,56847.0,0.08795]
[1725976047221,0.001,56851.0,56848.0,0.087949]
[1725976048317,0.001,56851.0,56843.0,0.087956]
[1725976048513,0.001,56851.0,56841.0,0.003]
[1725976048716,0.08796,56841.0,56840.0,0.014]
[1725976048917,0.46796,56841.0,56825.0,0.38]
[1725976049115,0.08796,56841.0,56826.0,1.5]
[1725976049319,0.467952,56846.0,56830.0,0.38]
[1725976049519,0.087955,56844.0,56833.0,0.087972]
[1725976049723,0.087952,56846.0,56843.0,0.012]
[1725976050326,0.001,56841.0,56830.0,0.38]
[1725976050520,0.001,56841.0,56840.0,0.087961]
[1725976050720,0.001,56841.0,56840.0,0.467961]
[1725976051414,0.001,56841.0,56840.0,0.087961]
[1725976051813,0.001,56851.0,56846.0,0.087952]
[1725976052424,0.087938,56855.0,56846.0,0.087952]
[1725976052721,0.087941,56854.0,56846.0,0.087952]
[1725976053121,0.087933,56859.0,56843.0,0.013]
[1725976053324,0.3274,56863.0,56843.0,0.013]
[1725976053325,0.3274,56863.0,56854.0,0.08794]
[1725976053525,0.08793,56861.0,56854.0,0.08794]
[1725976053723,0.087935,56857.0,56849.0,0.087947]
[1725976053923,0.087935,56857.0,56845.0,0.38]
[1725976053924,0.087932,56859.0,56845.0,0.38]
[1725976054122,0.001,56851.0,56850.0,0.087946]
[1725976055629,0.001,56859.0,56858.0,0.087933]
[1725976055927,0.088932,56859.0,56854.0,0.014]
[1725976056126,0.001,56859.0,56854.0,0.014]
[1725976056532,0.001,56859.0,56852.0,0.087942]
[1725976056832,0.001,56859.0,56854.0,0.087939]
[1725976057033,0.001,56859.0,56851.0,1.5]
[1725976057327,0.001,56859.0,56854.0,0.101938]
[1725976057527,0.002,56859.0,56854.0,0.101938]
[1725976057831,0.002,56859.0,56858.0,0.087933]
[1725976058327,0.087916,56869.0,56858.0,0.52764]
[1725976058523,0.467919,56868.0,56852.0,0.014]
[1725976058726,0.087937,56856.0,56852.0,0.014]
[1725976059331,0.087937,56856.0,56851.0,1.5]
[1725976059527,0.002,56859.0,56851.0,1.601944]
[1725976059733,0.002,56859.0,56853.0,0.087941]
[1725976060132,0.001,56856.0,56853.0,0.087941]
[1725976060436,0.002,56856.0,56854.0,0.08794]
[1725976060634,0.002,56856.0,56852.0,0.014]
[1725976061235,0.001,56856.0,56855.0,0.087938]
[1725976061430,0.001,56856.0,56855.0,0.457938]
[1725976061837,0.001,56856.0,56855.0,0.087938]
[1725976062539,0.002,56859.0,56858.0,0.087933]
[1725976062737,0.001,56859.0,56858.0,0.087933]
[1725976063235,0.087919,56868.0,56861.0,0.087928]
[1725976063431,0.087919,56868.0,56862.0,0.087927]
[1725976063635,0.087919,56868.0,56863.0,0.087925]
[1725976064436,0.087929,56862.0,56858.0,0.013]
[1725976064631,0.38,56867.0,56858.0,0.013]
[1725976064632,0.087922,56866.0,56858.0,0.013]
[1725976064831,0.38,56872.0,56863.0,0.087925]
[1725976065037,0.37,56875.0,56863.0,0.087925]
[1725976065230,0.087918,56869.0,56863.0,0.087925]
[1725976065831,0.087908,56875.0,56863.0,0.005]
[1725976066031,0.087908,56875.0,56863.0,0.092926]
[1725976066233,0.001,56868.0,56863.0,0.093926]
[1725976066428,0.001,56868.0,56863.0,0.006]
[1725976066635,0.087924,56864.0,56863.0,0.006]
[1725976066929,0.087924,56864.0,56857.0,0.107]
[1725976066930,0.087924,56864.0,56859.0,0.087931]
[1725976067127,0.087924,56864.0,56857.0,0.107]
[1725976067739,0.39585,56864.0,56863.0,0.005]
[1725976067940,0.835484,56864.0,56842.0,0.0088]
[1725976068141,0.22,56858.0,56847.0,0.08795]
[1725976068337,0.087941,56854.0,56841.0,0.22]
[1725976068545,0.22,56858.0,56846.0,0.087951]
[1725976068745,0.08794,56855.0,56842.0,1.5]
[1725976069047,0.22,56858.0,56842.0,1.5]
[1725976069440,0.22,56853.0,56840.0,0.305]
[1725976069746,0.087955,56844.0,56831.0,0.22]
[1725976069944,0.087943,56852.0,56825.0,0.096784]
[1725976069945,0.087947,56850.0,56840.0,0.08796]
[1725976070142,0.22,56847.0,56842.0,0.011]
[1725976070532,0.22,56843.0,56842.0,0.011]
[1725976070738,0.08796,56841.0,56840.0,0.006]
[1725976071052,0.22,56841.0,56820.0,0.087991]
[1725976071255,0.22,56832.0,56820.0,0.087991]
[1725976071546,0.087977,56830.0,56819.0,0.0991]
[1725976072344,0.087977,56830.0,56822.0,0.087989]
[1725976073151,0.088977,56830.0,56822.0,0.087989]
[1725976073360,0.22,56827.0,56818.0,0.02098219]
[1725976073648,0.103,56840.0,56811.0,0.0215072]
[1725976073649,0.22,56823.0,56811.0,0.0215072]
[1725976073841,0.308003,56814.0,56805.0,0.4124356]
[1725976074449,0.308003,56814.0,56805.0,0.5004506]
[1725976074647,0.088003,56814.0,56805.0,0.5004506]
[1725976074952,0.087993,56820.0,56809.0,0.088008]
[1725976075155,0.0999,56822.0,56806.0,0.22]
[1725976075340,0.087999,56816.0,56805.0,0.52138283]
[1725976075545,0.087999,56816.0,56805.0,0.43336683]
[1725976075941,0.22,56819.0,56809.0,0.088009]
[1725976076249,0.088005,56812.0,56805.0,0.43336683]
[1725976076647,0.222,56814.0,56805.0,0.43336683]
[1725976076648,0.221,56814.0,56805.0,0.43336683]
[1725976076951,0.001,56814.0,56805.0,0.43336683]
[1725976077145,0.089002,56814.0,56805.0,0.43336683]
[1725976077345,0.088002,56814.0,56805.0,0.52138183]
[1725976077548,0.001,56812.0,56807.0,0.22]
[1725976078148,0.001,56812.0,56811.0,0.308006]
[1725976078950,0.001,56819.0,56811.0,0.22]
[1725976079152,0.001,56814.0,56811.0,0.22]
[1725976079454,0.001,56819.0,56817.0,0.087996]
[1725976079648,0.087988,56823.0,56813.0,0.22]
[1725976079848,0.087992,56820.0,56814.0,0.088001]
[1725976080149,0.0972,56830.0,56809.0,0.22]
[1725976080150,0.22,56828.0,56809.0,0.22]
[1725976080354,0.0972,56830.0,56817.0,0.087997]
[1725976080751,0.0972,56830.0,56809.0,0.05217687]
[1725976080752,0.001,56819.0,56810.0,0.22]
[1725976080940,0.001,56819.0,56816.0,0.087997]
[1725976081346,0.001,56819.0,56810.0,0.22]
[1725976081652,0.001,56819.0,56813.0,0.088003]
[1725976081950,0.001,56819.0,56810.0,0.22]
[1725976082152,0.001,56819.0,56818.0,0.087995]
[1725976083650,0.002,56819.0,56818.0,1.590995]
[1725976083852,0.002,56819.0,56818.0,2.718995]
[1725976084148,0.002,56819.0,56818.0,1.590995]
[1725976084539,0.001,56819.0,56818.0,1.590995]
[1725976084945,0.001,56830.0,56818.0,2.631]
[1725976085145,0.001,56830.0,56826.0,0.087983]
[1725976085353,0.001,56830.0,56826.0,0.22]
[1725976085753,0.3274,56833.0,56821.0,0.22]
[1725976085948,0.22,56833.0,56821.0,0.08799]
[1725976086154,0.22,56833.0,56818.0,0.003]
[1725976086155,0.001,56830.0,56818.0,0.003]
[1725976086362,0.087982,56827.0,56821.0,0.08799]
[1725976086665,0.087982,56827.0,56822.0,0.087989]
[1725976086860,0.22,56829.0,56818.0,0.003]
[1725976087047,0.087988,56823.0,56818.0,0.003]
[1725976087247,0.087988,56823.0,56816.0,0.02187669]
[1725976087455,0.22,56829.0,56820.0,0.087992]
[1725976087770,0.087985,56825.0,56820.0,0.087992]
[1725976087957,0.22,56824.0,56814.0,0.088]
[1725976088161,0.22,56824.0,56810.0,0.0993]
[1725976088360,0.087998,56817.0,56810.0,0.0993]
[1725976088565,0.087998,56817.0,56813.0,0.088003]
[1725976089355,0.087998,56817.0,56810.0,0.20845162]
[1725976089660,0.087998,56817.0,56810.0,0.12044462]
[1725976089850,0.088998,56817.0,56813.0,0.004]
[1725976090049,0.088998,56817.0,56813.0,0.092002]
[1725976091749,0.089998,56817.0,56813.0,0.092002]
[1725976092367,0.088002,56814.0,56813.0,0.004]
[1725976092864,1.304044,56814.0,56813.0,0.004]
[1725976093457,1.216042,56814.0,56813.0,0.004]
[1725976093667,1.305044,56814.0,56813.0,0.004]
[1725976093964,0.088003,56813.0,56804.0,0.088017]
[1725976094161,0.22,56805.0,56789.0,0.0088]
[1725976094361,0.22,56795.0,56778.0,0.0977]
[1725976094563,0.088044,56787.0,56782.0,0.088051]
[1725976095063,0.22,56795.0,56779.0,0.22]